[Event "*** SCC Grand Prix: Titled Tuesday Blitz"]
[Site "Chess.com"]
[Date "2020.06.02"]
[Round "4"]
[White "Riptide27"]
[Black "Vesper2018"]
[Result "1-0"]
[WhiteElo "2598"]
[BlackElo "2349"]
[TimeControl "180+1"]
[EndTime "10:41:02 PDT"]
[Termination "Riptide27 won on time"]

1. d4 {[%clk 0:03:00.9]} 1... Nf6 {[%clk 0:03:00]} 2. c4 {[%clk 0:03:00.2]} 2...
g6 {[%clk 0:03:00.2]} 3. Nc3 {[%clk 0:03:00]} 3... Bg7 {[%clk 0:03:00.5]} 4. e4
{[%clk 0:02:59.9]} 4... d6 {[%clk 0:03:00.5]} 5. Be2 {[%clk 0:02:59.9]} 5... O-O
{[%clk 0:03:00]} 6. Be3 {[%clk 0:03:00.4]} 6... e5 {[%clk 0:02:49.2]} 7. d5
{[%clk 0:02:58.6]} 7... a5 {[%clk 0:02:37.6]} 8. g4 {[%clk 0:02:58.3]} 8... Na6
{[%clk 0:02:36.4]} 9. h4 {[%clk 0:02:57]} 9... Nc5 {[%clk 0:02:34.7]} 10. f3
{[%clk 0:02:56.6]} 10... h5 {[%clk 0:02:34.7]} 11. g5 {[%clk 0:02:56.2]} 11...
Nfd7 {[%clk 0:02:32.1]} 12. Nh3 {[%clk 0:02:55.7]} 12... Nb6 {[%clk 0:02:27.4]}
13. Nf2 {[%clk 0:02:54.3]} 13... a4 {[%clk 0:02:18.7]} 14. Qd2 {[%clk
0:02:53.9]} 14... Bd7 {[%clk 0:02:11.8]} 15. O-O-O {[%clk 0:02:43.9]} 15... Qe7
{[%clk 0:02:06.8]} 16. Kb1 {[%clk 0:02:42.1]} 16... Rfd8 {[%clk 0:02:06.1]} 17.
Rc1 {[%clk 0:02:40.7]} 17... Be8 {[%clk 0:02:01]} 18. Rhd1 {[%clk 0:02:39.6]}
18... c6 {[%clk 0:01:52.4]} 19. Qe1 {[%clk 0:02:07.7]} 19... f5 {[%clk
0:01:35.1]} 20. Bf1 {[%clk 0:02:03.6]} 20... Nbd7 {[%clk 0:01:11.3]} 21. Nd3
{[%clk 0:01:57.8]} 21... Na6 {[%clk 0:00:57.1]} 22. Bh3 {[%clk 0:01:54.4]} 22...
f4 {[%clk 0:00:51.1]} 23. Bf2 {[%clk 0:01:48]} 23... Nc7 {[%clk 0:00:44.5]} 24.
Rd2 {[%clk 0:01:34.2]} 24... c5 {[%clk 0:00:44.3]} 25. Qd1 {[%clk 0:01:33.2]}
25... Nb6 {[%clk 0:00:39.6]} 26. Ne2 {[%clk 0:01:30.6]} 26... Nc8 {[%clk
0:00:36.5]} 27. Bxc8 {[%clk 0:01:21.1]} 27... Rdxc8 {[%clk 0:00:36.3]} 28. Nxc5
{[%clk 0:01:20.4]} 28... dxc5 {[%clk 0:00:21.6]} 29. d6 {[%clk 0:01:20.3]} 29...
Qe6 {[%clk 0:00:19]} 30. dxc7 {[%clk 0:01:21.2]} 30... Rxc7 {[%clk 0:00:19]} 31.
Rd6 {[%clk 0:01:19]} 31... Qe7 {[%clk 0:00:18.9]} 32. Nc3 {[%clk 0:01:14.7]}
32... Bf7 {[%clk 0:00:18.7]} 33. Nb5 {[%clk 0:01:13.7]} 33... Rc6 {[%clk
0:00:11.8]} 34. Rd7 {[%clk 0:01:12.9]} 34... Qf8 {[%clk 0:00:08]} 35. Nd6 {[%clk
0:01:07.2]} 35... Be6 {[%clk 0:00:04.8]} 36. Nxb7 {[%clk 0:00:57.5]} 36... Bxd7
{[%clk 0:00:05.1]} 37. Qxd7 {[%clk 0:00:57.8]} 37... Rac8 {[%clk 0:00:05]} 38.
Rd1 {[%clk 0:00:53.8]} 38... R6c7 {[%clk 0:00:05.1]} 39. Qd5+ {[%clk 0:00:53.2]}
39... Kh7 {[%clk 0:00:04.5]} 40. Nd6 {[%clk 0:00:38.6]} 40... Rd8 {[%clk
0:00:04.9]} 41. Bxc5 {[%clk 0:00:36.6]} 41... Qe7 {[%clk 0:00:05.4]} 42. Ba3
{[%clk 0:00:35.3]} 42... Bf8 {[%clk 0:00:04.9]} 43. c5 {[%clk 0:00:35.5]} 43...
Bg7 {[%clk 0:00:03.5]} 44. Rc1 {[%clk 0:00:29.5]} 44... Qd7 {[%clk 0:00:03.4]}
45. Qd3 {[%clk 0:00:24.8]} 45... Rc6 {[%clk 0:00:03.3]} 46. Rd1 {[%clk
0:00:17.9]} 46... Qc7 {[%clk 0:00:03.6]} 47. Qd5 {[%clk 0:00:17.7]} 47... Qd7
{[%clk 0:00:03.9]} 48. Qd2 {[%clk 0:00:16.1]} 48... Qc7 {[%clk 0:00:04]} 49. Qb4
{[%clk 0:00:16.5]} 49... Qa7 {[%clk 0:00:03]} 50. Qb5 {[%clk 0:00:16.2]} 50...
Qc7 {[%clk 0:00:03.2]} 51. Qxa4 {[%clk 0:00:16]} 51... Rb8 {[%clk 0:00:02.7]}
52. Qc4 {[%clk 0:00:15.1]} 52... Qa7 {[%clk 0:00:02.5]} 53. Rd3 {[%clk 0:00:12]}
53... Ra6 {[%clk 0:00:02.2]} 54. Ka1 {[%clk 0:00:10.6]} 54... Rc6 {[%clk
0:00:02.2]} 55. Qd5 {[%clk 0:00:08.4]} 55... Qa5 {[%clk 0:00:02]} 56. b4 {[%clk
0:00:06.3]} 56... Qc7 {[%clk 0:00:01.5]} 57. b5 {[%clk 0:00:05.2]} 57... Rxd6
{[%clk 0:00:01.8]} 58. Qxd6 {[%clk 0:00:04.6]} 58... Qa5 {[%clk 0:00:01.8]} 59.
b6 {[%clk 0:00:02.2]} 1-0

[Event "*** SCC Grand Prix: Titled Tuesday Blitz"]
[Site "Chess.com"]
[Date "2020.06.02"]
[Round "4"]
[White "amintabatabaei"]
[Black "regular_legs"]
[Result "1-0"]
[WhiteElo "2924"]
[BlackElo "2556"]
[TimeControl "180+1"]
[EndTime "10:41:05 PDT"]
[Termination "amintabatabaei won by resignation"]

1. c4 {[%clk 0:03:00.9]} 1... c5 {[%clk 0:02:59.2]} 2. Nc3 {[%clk 0:03:01]} 2...
Nf6 {[%clk 0:02:59.5]} 3. g3 {[%clk 0:03:01.9]} 3... e6 {[%clk 0:03:00.1]} 4.
Nf3 {[%clk 0:03:01.6]} 4... b6 {[%clk 0:03:00.5]} 5. Bg2 {[%clk 0:03:01.4]} 5...
Bb7 {[%clk 0:03:01.1]} 6. O-O {[%clk 0:03:02.1]} 6... Be7 {[%clk 0:03:01.8]} 7.
Re1 {[%clk 0:02:57.9]} 7... d5 {[%clk 0:02:56]} 8. cxd5 {[%clk 0:02:57.4]} 8...
Nxd5 {[%clk 0:02:56.9]} 9. e4 {[%clk 0:02:53.4]} 9... Nb4 {[%clk 0:02:54.2]} 10.
d4 {[%clk 0:02:51.2]} 10... cxd4 {[%clk 0:02:55.1]} 11. Nxd4 {[%clk 0:02:50.8]}
11... N8c6 {[%clk 0:02:47.3]} 12. Nxc6 {[%clk 0:02:41.8]} 12... Qxd1 {[%clk
0:02:42.2]} 13. Rxd1 {[%clk 0:02:42.7]} 13... Bxc6 {[%clk 0:02:42.1]} 14. a3
{[%clk 0:02:34.7]} 14... Nc2 {[%clk 0:02:34]} 15. Rb1 {[%clk 0:02:33.2]} 15...
Rd8 {[%clk 0:02:34.9]} 16. Rxd8+ {[%clk 0:02:21]} 16... Kxd8 {[%clk 0:02:35.8]}
17. Bf4 {[%clk 0:02:17.8]} 17... Kc8 {[%clk 0:02:18.1]} 18. Rc1 {[%clk
0:02:09.8]} 18... Nd4 {[%clk 0:02:17.5]} 19. b4 {[%clk 0:01:42.8]} 19... Kb7
{[%clk 0:02:09]} 20. Be5 {[%clk 0:01:42.8]} 20... Nb3 {[%clk 0:02:03.5]} 21. Rb1
{[%clk 0:01:40.1]} 21... f6 {[%clk 0:01:30.5]} 22. b5 {[%clk 0:01:37.1]} 22...
Be8 {[%clk 0:01:02.2]} 23. Bxf6 {[%clk 0:01:29.9]} 23... gxf6 {[%clk 0:01:01.9]}
24. Rxb3 {[%clk 0:01:28.2]} 24... e5 {[%clk 0:00:57.9]} 25. Nd5 {[%clk
0:01:20.6]} 25... Bf7 {[%clk 0:00:57.5]} 26. Rc3 {[%clk 0:01:18.3]} 26... Bc5
{[%clk 0:00:51.2]} 27. Nxf6 {[%clk 0:01:15.6]} 27... Bd4 {[%clk 0:00:49.9]} 28.
Rc2 {[%clk 0:01:09.6]} 28... Rd8 {[%clk 0:00:45.8]} 29. Nd5 {[%clk 0:01:09.1]}
29... Bc5 {[%clk 0:00:42.7]} 30. a4 {[%clk 0:01:06.2]} 30... a6 {[%clk 0:00:42]}
31. h4 {[%clk 0:00:54.1]} 31... axb5 {[%clk 0:00:40.9]} 32. axb5 {[%clk
0:00:55]} 32... Ra8 {[%clk 0:00:41.5]} 33. Rd2 {[%clk 0:00:54.4]} 33... Ra1+
{[%clk 0:00:39.1]} 34. Kh2 {[%clk 0:00:54.4]} 34... Be8 {[%clk 0:00:39.4]} 35.
Nf6 {[%clk 0:00:50]} 35... Bxb5 {[%clk 0:00:37.5]} 36. Nxh7 {[%clk 0:00:50.5]}
36... Bd4 {[%clk 0:00:30.9]} 37. h5 {[%clk 0:00:49.1]} 37... Bc4 {[%clk
0:00:27.8]} 38. h6 {[%clk 0:00:49.1]} 38... b5 {[%clk 0:00:28.7]} 39. Nf6 {[%clk
0:00:44.9]} 39... Ra8 {[%clk 0:00:27.8]} 40. h7 {[%clk 0:00:44.8]} 40... Rh8
{[%clk 0:00:26.5]} 41. g4 {[%clk 0:00:29.1]} 41... b4 {[%clk 0:00:26.5]} 42. g5
{[%clk 0:00:29.8]} 42... Bf7 {[%clk 0:00:24.1]} 43. Bh3 {[%clk 0:00:27.9]} 43...
b3 {[%clk 0:00:23.8]} 44. Bf5 {[%clk 0:00:27.4]} 44... b2 {[%clk 0:00:23.9]} 45.
Rd1 {[%clk 0:00:27.7]} 45... Kc6 {[%clk 0:00:20.8]} 46. g6 {[%clk 0:00:27.1]}
46... Bxg6 {[%clk 0:00:20.6]} 47. Bxg6 {[%clk 0:00:28]} 47... Kc5 {[%clk
0:00:20.8]} 48. Kg3 {[%clk 0:00:23.2]} 48... Kb4 {[%clk 0:00:20.8]} 49. f3
{[%clk 0:00:19]} 49... Kc3 {[%clk 0:00:21.7]} 50. Kg4 {[%clk 0:00:15.1]} 50...
Kc2 {[%clk 0:00:21.6]} 51. Rf1 {[%clk 0:00:13.9]} 51... Be3 {[%clk 0:00:21.8]}
52. Nd5 {[%clk 0:00:12.7]} 52... Bc1 {[%clk 0:00:21.2]} 53. Rf2+ {[%clk
0:00:13.3]} 53... Bd2 {[%clk 0:00:20.8]} 54. Rf1 {[%clk 0:00:13.6]} 54... Bc1
{[%clk 0:00:20.8]} 55. Rf2+ {[%clk 0:00:10.1]} 55... Bd2 {[%clk 0:00:21]} 56.
Ne3+ {[%clk 0:00:09.7]} 56... Kd3 {[%clk 0:00:20.9]} 57. Rxd2+ {[%clk
0:00:09.9]} 57... Kxd2 {[%clk 0:00:21]} 58. Nc4+ {[%clk 0:00:10.5]} 58... Kc3
{[%clk 0:00:21.9]} 59. Nxb2 {[%clk 0:00:11.4]} 59... Kxb2 {[%clk 0:00:22.6]} 60.
Kg5 {[%clk 0:00:11.8]} 60... Kc3 {[%clk 0:00:23.5]} 61. Kf6 {[%clk 0:00:12.2]}
61... Kd4 {[%clk 0:00:24.4]} 62. Kg7 {[%clk 0:00:12.6]} 62... Rxh7+ {[%clk
0:00:25]} 63. Kxh7 {[%clk 0:00:13.1]} 63... Ke3 {[%clk 0:00:25.9]} 64. Bf5
{[%clk 0:00:13.7]} 64... Kf4 {[%clk 0:00:26.8]} 65. Kg6 {[%clk 0:00:14.6]} 1-0

[Event "*** SCC Grand Prix: Titled Tuesday Blitz"]
[Site "Chess.com"]
[Date "2020.06.02"]
[Round "4"]
[White "AniJak"]
[Black "boasovietica"]
[Result "1-0"]
[WhiteElo "2258"]
[BlackElo "2423"]
[TimeControl "180+1"]
[EndTime "10:41:07 PDT"]
[Termination "AniJak won on time"]

1. e4 {[%clk 0:03:00.9]} 1... e5 {[%clk 0:02:59.3]} 2. Nc3 {[%clk 0:03:00]} 2...
Nf6 {[%clk 0:02:58.6]} 3. g3 {[%clk 0:02:59.9]} 3... Nc6 {[%clk 0:02:58]} 4. Bg2
{[%clk 0:02:59.5]} 4... Bc5 {[%clk 0:02:57.7]} 5. d3 {[%clk 0:02:59.5]} 5... d6
{[%clk 0:02:56.9]} 6. Nge2 {[%clk 0:02:59.5]} 6... a6 {[%clk 0:02:52.1]} 7. O-O
{[%clk 0:02:54.7]} 7... h5 {[%clk 0:02:50.5]} 8. h3 {[%clk 0:02:54]} 8... Be6
{[%clk 0:02:26.5]} 9. Nd5 {[%clk 0:02:52.6]} 9... Qd7 {[%clk 0:02:21.9]} 10. Kh2
{[%clk 0:02:50]} 10... Ne7 {[%clk 0:02:07.5]} 11. c4 {[%clk 0:02:35.3]} 11...
O-O-O {[%clk 0:02:03.5]} 12. b4 {[%clk 0:02:31.4]} 12... Ba7 {[%clk 0:02:01.5]}
13. Nxe7+ {[%clk 0:02:27.6]} 13... Qxe7 {[%clk 0:02:00.9]} 14. Be3 {[%clk
0:02:27.6]} 14... Kb8 {[%clk 0:01:30.4]} 15. Bxa7+ {[%clk 0:02:26.1]} 15... Kxa7
{[%clk 0:01:31.3]} 16. b5 {[%clk 0:02:21.1]} 16... axb5 {[%clk 0:01:28.9]} 17.
cxb5 {[%clk 0:02:20.4]} 17... Nd7 {[%clk 0:01:22.1]} 18. a4 {[%clk 0:02:18.8]}
18... Nc5 {[%clk 0:01:21.6]} 19. b6+ {[%clk 0:02:07.8]} 19... cxb6 {[%clk
0:01:16.1]} 20. a5 {[%clk 0:02:06.3]} 20... b5 {[%clk 0:01:14.7]} 21. Nc3 {[%clk
0:02:03.3]} 21... Qd7 {[%clk 0:01:11.9]} 22. Qb1 {[%clk 0:01:57.7]} 22... h4
{[%clk 0:01:02.4]} 23. g4 {[%clk 0:01:45]} 23... Bb3 {[%clk 0:00:50.1]} 24. Ra3
{[%clk 0:01:40.2]} 24... Ba4 {[%clk 0:00:49]} 25. Nd5 {[%clk 0:01:26]} 25... Ka6
{[%clk 0:00:42.2]} 26. Rc1 {[%clk 0:01:22.7]} 26... Rc8 {[%clk 0:00:36.8]} 27.
Nb6 {[%clk 0:01:20.9]} 27... Qe6 {[%clk 0:00:30.5]} 28. Nxc8 {[%clk 0:01:19.2]}
28... Rxc8 {[%clk 0:00:29.9]} 29. Bf1 {[%clk 0:01:16.6]} 29... Ka7 {[%clk
0:00:21.9]} 30. Be2 {[%clk 0:01:04.1]} 30... Qf6 {[%clk 0:00:21.3]} 31. Kg2
{[%clk 0:00:59.5]} 31... Rc6 {[%clk 0:00:19.8]} 32. d4 {[%clk 0:00:49.5]} 32...
exd4 {[%clk 0:00:15.2]} 33. Bxb5 {[%clk 0:00:48]} 33... Bxb5 {[%clk 0:00:12.2]}
34. Qxb5 {[%clk 0:00:47.8]} 34... Qf4 {[%clk 0:00:11.6]} 35. Re1 {[%clk
0:00:36.5]} 35... d3 {[%clk 0:00:09.9]} 36. Raa1 {[%clk 0:00:22.3]} 36... Nxe4
{[%clk 0:00:09.4]} 37. Rf1 {[%clk 0:00:17.1]} 37... Ng5 {[%clk 0:00:06.5]} 38.
Qxd3 {[%clk 0:00:15.4]} 38... Rc4 {[%clk 0:00:04.7]} 39. Qe3+ {[%clk 0:00:15.3]}
39... Qxe3 {[%clk 0:00:04.1]} 40. fxe3 {[%clk 0:00:16.2]} 40... f6 {[%clk
0:00:04.5]} 41. Rab1 {[%clk 0:00:15.3]} 41... Rc2+ {[%clk 0:00:04.6]} 42. Rf2
{[%clk 0:00:14.4]} 42... Rxf2+ {[%clk 0:00:05]} 43. Kxf2 {[%clk 0:00:14.2]}
43... Nxh3+ {[%clk 0:00:05.9]} 44. Kf3 {[%clk 0:00:13.7]} 44... Ng5+ {[%clk
0:00:06.3]} 45. Kg2 {[%clk 0:00:12.4]} 45... Ne4 {[%clk 0:00:06.2]} 46. Rd1
{[%clk 0:00:09.6]} 46... g5 {[%clk 0:00:05.5]} 47. Rd4 {[%clk 0:00:08.6]} 47...
h3+ {[%clk 0:00:04.6]} 48. Kxh3 {[%clk 0:00:06.6]} 48... d5 {[%clk 0:00:01.9]}
49. Rxd5 {[%clk 0:00:04.8]} 49... Ka6 {[%clk 0:00:02.4]} 50. Rd4 {[%clk
0:00:04.1]} 50... Nc5 {[%clk 0:00:02.5]} 51. Rd6+ {[%clk 0:00:03.8]} 51... Kxa5
{[%clk 0:00:02.3]} 52. Rxf6 {[%clk 0:00:04.7]} 52... b5 {[%clk 0:00:02.7]} 53.
Rf5 {[%clk 0:00:04.8]} 53... Kb6 {[%clk 0:00:02.6]} 54. Rxg5 {[%clk 0:00:04.7]}
54... b4 {[%clk 0:00:03.1]} 55. Rg6+ {[%clk 0:00:04.5]} 55... Kb5 {[%clk
0:00:03.2]} 56. Rg8 {[%clk 0:00:04.5]} 56... Kb6 {[%clk 0:00:03.6]} 57. Rb8+
{[%clk 0:00:04.2]} 57... Nb7 {[%clk 0:00:04.1]} 58. Rc8 {[%clk 0:00:02]} 58...
Kb5 {[%clk 0:00:04]} 59. Rc1 {[%clk 0:00:02.3]} 59... b3 {[%clk 0:00:04.2]} 60.
g5 {[%clk 0:00:02.5]} 60... Nd6 {[%clk 0:00:02.3]} 61. Rg1 {[%clk 0:00:02]}
61... b2 {[%clk 0:00:01.8]} 62. g6 {[%clk 0:00:02.1]} 62... Ne8 {[%clk
0:00:01.9]} 63. Rb1 {[%clk 0:00:01.9]} 63... Kc4 {[%clk 0:00:01.2]} 64. Rxb2
{[%clk 0:00:02.8]} 64... Kd3 {[%clk 0:00:01.4]} 65. Rg2 {[%clk 0:00:03.2]} 1-0

[Event "*** SCC Grand Prix: Titled Tuesday Blitz"]
[Site "Chess.com"]
[Date "2020.06.02"]
[Round "4"]
[White "AshotParvanyan"]
[Black "simonachess"]
[Result "0-1"]
[WhiteElo "2411"]
[BlackElo "2174"]
[TimeControl "180+1"]
[EndTime "10:41:07 PDT"]
[Termination "simonachess won on time"]

1. Nf3 {[%clk 0:03:00.9]} 1... Nf6 {[%clk 0:02:58.8]} 2. g3 {[%clk 0:03:00.3]}
2... b6 {[%clk 0:02:57.7]} 3. Bg2 {[%clk 0:03:00.5]} 3... Bb7 {[%clk 0:02:58.3]}
4. O-O {[%clk 0:03:01]} 4... e6 {[%clk 0:02:57.4]} 5. c4 {[%clk 0:03:01.1]} 5...
Be7 {[%clk 0:02:57.4]} 6. d4 {[%clk 0:03:01.2]} 6... O-O {[%clk 0:02:56.7]} 7.
Re1 {[%clk 0:03:01.5]} 7... Ne4 {[%clk 0:02:55.9]} 8. Nfd2 {[%clk 0:02:57.7]}
8... d5 {[%clk 0:02:52.8]} 9. Nxe4 {[%clk 0:02:56.4]} 9... dxe4 {[%clk
0:02:52.7]} 10. Nc3 {[%clk 0:02:56.8]} 10... f5 {[%clk 0:02:52.7]} 11. Bf4
{[%clk 0:02:38.5]} 11... Nd7 {[%clk 0:02:43.1]} 12. Nb5 {[%clk 0:02:35.5]} 12...
e5 {[%clk 0:01:52.2]} 13. dxe5 {[%clk 0:02:33.9]} 13... Nc5 {[%clk 0:01:36.5]}
14. Qc2 {[%clk 0:02:26.6]} 14... Ne6 {[%clk 0:01:31.7]} 15. Rad1 {[%clk
0:02:25.5]} 15... Qe8 {[%clk 0:01:29.9]} 16. Bc1 {[%clk 0:02:18]} 16... Qg6
{[%clk 0:01:08.5]} 17. Rd7 {[%clk 0:02:12.4]} 17... Bb4 {[%clk 0:00:55.9]} 18.
Bd2 {[%clk 0:02:07.4]} 18... Bc5 {[%clk 0:00:52.2]} 19. Nxc7 {[%clk 0:01:34.4]}
19... Bc6 {[%clk 0:00:49.6]} 20. Nxa8 {[%clk 0:01:18.7]} 20... Bxd7 {[%clk
0:00:46.9]} 21. Nc7 {[%clk 0:01:17.7]} 21... Nxc7 {[%clk 0:00:45.6]} 22. b4
{[%clk 0:01:17.1]} 22... Be7 {[%clk 0:00:43.9]} 23. Bc3 {[%clk 0:01:08.5]} 23...
Ne6 {[%clk 0:00:43.8]} 24. Rd1 {[%clk 0:01:07.7]} 24... Qe8 {[%clk 0:00:44]} 25.
f3 {[%clk 0:01:05.1]} 25... Bc6 {[%clk 0:00:43.4]} 26. fxe4 {[%clk 0:01:02.8]}
26... f4 {[%clk 0:00:43.8]} 27. Qd2 {[%clk 0:00:48.4]} 27... fxg3 {[%clk
0:00:41.6]} 28. hxg3 {[%clk 0:00:49.3]} 28... Qg6 {[%clk 0:00:39.2]} 29. Qe1
{[%clk 0:00:25.2]} 29... Bxe4 {[%clk 0:00:37.2]} 30. Bxe4 {[%clk 0:00:18.8]}
30... Qxe4 {[%clk 0:00:38.1]} 31. Rd3 {[%clk 0:00:19]} 31... Bg5 {[%clk
0:00:29.6]} 32. Bd2 {[%clk 0:00:18.1]} 32... Qxe5 {[%clk 0:00:26.3]} 33. Rd5
{[%clk 0:00:15.8]} 33... Bxd2 {[%clk 0:00:15.6]} 34. Rxe5 {[%clk 0:00:10.6]}
34... Bxe1 {[%clk 0:00:15.3]} 35. Rxe6 {[%clk 0:00:10.6]} 35... Bxb4 {[%clk
0:00:15.9]} 36. Kg2 {[%clk 0:00:09.2]} 36... Bc5 {[%clk 0:00:16.2]} 37. Rc6
{[%clk 0:00:08.3]} 37... a5 {[%clk 0:00:16.3]} 38. e4 {[%clk 0:00:07]} 38... Re8
{[%clk 0:00:14.9]} 39. Kf3 {[%clk 0:00:06.9]} 39... Kf7 {[%clk 0:00:15]} 40.
Rc7+ {[%clk 0:00:06.8]} 40... Re7 {[%clk 0:00:15.6]} 41. Rc6 {[%clk 0:00:07.1]}
41... Re6 {[%clk 0:00:15.7]} 42. Rc7+ {[%clk 0:00:06.7]} 42... Kf6 {[%clk
0:00:16.2]} 43. a4 {[%clk 0:00:06.5]} 43... h6 {[%clk 0:00:16]} 44. Rc8 {[%clk
0:00:06.8]} 44... Rd6 {[%clk 0:00:16.2]} 45. Re8 {[%clk 0:00:06.7]} 45... Rd3+
{[%clk 0:00:14.6]} 46. Kg4 {[%clk 0:00:06.3]} 46... Kf7 {[%clk 0:00:14.4]} 47.
Re5 {[%clk 0:00:05.5]} 47... Bd6 {[%clk 0:00:14.1]} 48. Rf5+ {[%clk 0:00:04.9]}
48... Ke7 {[%clk 0:00:14.5]} 49. Rb5 {[%clk 0:00:05.3]} 49... Rxg3+ {[%clk
0:00:13.7]} 50. Kf5 {[%clk 0:00:05.1]} 50... Bc5 {[%clk 0:00:13.1]} 51. e5
{[%clk 0:00:04.5]} 51... h5 {[%clk 0:00:13]} 52. Rb1 {[%clk 0:00:03.3]} 52... h4
{[%clk 0:00:13.2]} 53. Rh1 {[%clk 0:00:03.7]} 53... g6+ {[%clk 0:00:13.5]} 54.
Kf4 {[%clk 0:00:03.3]} 54... Be3+ {[%clk 0:00:10.3]} 55. Ke4 {[%clk 0:00:03]}
55... g5 {[%clk 0:00:10.6]} 56. Kf5 {[%clk 0:00:02.4]} 56... Bf4 {[%clk
0:00:10.5]} 57. Rb1 {[%clk 0:00:01.5]} 57... Re3 {[%clk 0:00:10.9]} 58. Rxb6
{[%clk 0:00:01.7]} 58... Rxe5+ {[%clk 0:00:11.4]} 59. Kg4 {[%clk 0:00:02.3]}
59... Rc5 {[%clk 0:00:11.6]} 60. Rb7+ {[%clk 0:00:02.3]} 60... Kd6 {[%clk
0:00:11.6]} 61. Ra7 {[%clk 0:00:02.5]} 61... Rxc4 {[%clk 0:00:11.6]} 62. Ra6+
{[%clk 0:00:02.1]} 62... Kd5 {[%clk 0:00:11.6]} 63. Rxa5+ {[%clk 0:00:01.1]}
63... Kd4 {[%clk 0:00:12]} 64. Ra6 {[%clk 0:00:01.2]} 64... Kc3 {[%clk
0:00:12.5]} 65. Ra8 {[%clk 0:00:01.8]} 65... Kb4 {[%clk 0:00:12.9]} 66. Re8
{[%clk 0:00:01.8]} 66... Kxa4 {[%clk 0:00:12.5]} 67. Kh3 {[%clk 0:00:02.2]}
67... Kb4 {[%clk 0:00:12.9]} 68. Kg4 {[%clk 0:00:02.6]} 68... Kc3 {[%clk
0:00:13.5]} 69. Rd8 {[%clk 0:00:02.4]} 69... Rd4 {[%clk 0:00:13.9]} 70. Kh3
{[%clk 0:00:02.8]} 70... Rd3+ {[%clk 0:00:14]} 0-1

[Event "*** SCC Grand Prix: Titled Tuesday Blitz"]
[Site "Chess.com"]
[Date "2020.06.02"]
[Round "4"]
[White "aNaartjieZA"]
[Black "vaishali2001"]
[Result "1-0"]
[WhiteElo "2570"]
[BlackElo "2598"]
[TimeControl "180+1"]
[EndTime "10:41:10 PDT"]
[Termination "aNaartjieZA won by resignation"]

1. e4 {[%clk 0:03:00.9]} 1... e5 {[%clk 0:02:58.7]} 2. Nf3 {[%clk 0:03:00.9]}
2... Nc6 {[%clk 0:02:59.1]} 3. Bc4 {[%clk 0:03:00.8]} 3... Nf6 {[%clk
0:02:58.7]} 4. d3 {[%clk 0:03:01.1]} 4... h6 {[%clk 0:02:58.1]} 5. O-O {[%clk
0:03:00.8]} 5... g5 {[%clk 0:02:58]} 6. c3 {[%clk 0:03:00.1]} 6... Bg7 {[%clk
0:02:54.8]} 7. Re1 {[%clk 0:02:58.6]} 7... Qe7 {[%clk 0:02:51]} 8. Bb3 {[%clk
0:02:56.1]} 8... d6 {[%clk 0:02:50.2]} 9. a4 {[%clk 0:02:53.3]} 9... Be6 {[%clk
0:02:34.9]} 10. Na3 {[%clk 0:02:47.2]} 10... O-O {[%clk 0:02:30.6]} 11. Bc2
{[%clk 0:02:39.8]} 11... Rad8 {[%clk 0:02:06.8]} 12. Qe2 {[%clk 0:02:38]} 12...
g4 {[%clk 0:01:56.3]} 13. Nd2 {[%clk 0:02:35]} 13... d5 {[%clk 0:01:38.5]} 14.
exd5 {[%clk 0:02:29.1]} 14... Nxd5 {[%clk 0:01:39.4]} 15. Nf1 {[%clk 0:02:28.8]}
15... f5 {[%clk 0:01:31.2]} 16. f4 {[%clk 0:02:14.4]} 16... Rde8 {[%clk
0:01:13.6]} 17. fxe5 {[%clk 0:02:08.7]} 17... f4 {[%clk 0:01:08.3]} 18. Qe4
{[%clk 0:01:59.5]} 18... f3 {[%clk 0:00:41.1]} 19. Be3 {[%clk 0:01:49.1]} 19...
Nxe3 {[%clk 0:00:34.7]} 20. Rxe3 {[%clk 0:01:48.8]} 20... fxg2 {[%clk
0:00:26.1]} 21. Qxg2 {[%clk 0:01:43.3]} 21... Nxe5 {[%clk 0:00:25.6]} 22. d4
{[%clk 0:01:36.5]} 22... Nf3+ {[%clk 0:00:24.9]} 23. Kh1 {[%clk 0:01:36.6]}
23... Qd7 {[%clk 0:00:18.3]} 24. Be4 {[%clk 0:01:22.4]} 24... Bd5 {[%clk
0:00:14.5]} 25. Bxd5+ {[%clk 0:01:21.2]} 25... Qxd5 {[%clk 0:00:15.4]} 26. Nc2
{[%clk 0:01:15.9]} 26... Qf5 {[%clk 0:00:13.3]} 27. Rxe8 {[%clk 0:01:13.9]}
27... Rxe8 {[%clk 0:00:14.2]} 28. Nce3 {[%clk 0:01:14]} 28... Qe4 {[%clk
0:00:10.3]} 29. Nxg4 {[%clk 0:01:12.8]} 29... Kh7 {[%clk 0:00:09.7]} 30. Ng3
{[%clk 0:01:09.9]} 30... Qxg4 {[%clk 0:00:09.2]} 31. Rf1 {[%clk 0:01:09.5]}
31... Re3 {[%clk 0:00:08.7]} 32. h3 {[%clk 0:01:07.6]} 32... Qf4 {[%clk
0:00:05.4]} 33. Nh5 {[%clk 0:01:06.3]} 33... Qf7 {[%clk 0:00:05.9]} 34. Nxg7
{[%clk 0:01:02.8]} 34... Qxg7 {[%clk 0:00:06.8]} 35. Rxf3 {[%clk 0:01:02.7]}
35... Qxg2+ {[%clk 0:00:04.6]} 36. Kxg2 {[%clk 0:01:02.6]} 36... Re2+ {[%clk
0:00:05.1]} 37. Rf2 {[%clk 0:01:02.8]} 37... Re6 {[%clk 0:00:06]} 38. Kf3 {[%clk
0:01:02.3]} 38... Rb6 {[%clk 0:00:05.2]} 39. Ke4 {[%clk 0:01:00.2]} 39... Kg6
{[%clk 0:00:05.8]} 40. b4 {[%clk 0:00:58.8]} 40... Ra6 {[%clk 0:00:06]} 41. a5
{[%clk 0:00:58.5]} 41... Re6+ {[%clk 0:00:06.6]} 42. Kd5 {[%clk 0:00:58.2]}
42... Re3 {[%clk 0:00:05.6]} 43. Kc4 {[%clk 0:00:57.9]} 43... Rxh3 {[%clk
0:00:05.4]} 44. Rg2+ {[%clk 0:00:58.3]} 44... Kf6 {[%clk 0:00:05.3]} 45. Rf2+
{[%clk 0:00:58.3]} 45... Ke6 {[%clk 0:00:05.7]} 46. d5+ {[%clk 0:00:57.2]} 46...
Kd6 {[%clk 0:00:05.4]} 47. Rf6+ {[%clk 0:00:57.3]} 47... Kd7 {[%clk 0:00:04.9]}
48. Rf7+ {[%clk 0:00:57.1]} 48... Kd6 {[%clk 0:00:05.5]} 49. Rf5 {[%clk
0:00:55.1]} 49... Rh4+ {[%clk 0:00:05.1]} 50. Kb3 {[%clk 0:00:55.2]} 50... Rh3
{[%clk 0:00:05.9]} 51. Kc4 {[%clk 0:00:53.8]} 51... h5 {[%clk 0:00:06.4]} 52.
Rf6+ {[%clk 0:00:53.4]} 52... Kd7 {[%clk 0:00:06.6]} 53. Rh6 {[%clk 0:00:53.5]}
53... Rh2 {[%clk 0:00:02.9]} 54. Rh7+ {[%clk 0:00:53.1]} 54... Kd6 {[%clk
0:00:02.7]} 55. Rh6+ {[%clk 0:00:53.2]} 55... Kd7 {[%clk 0:00:02.9]} 56. a6
{[%clk 0:00:53.5]} 56... b6 {[%clk 0:00:02.8]} 57. Kb5 {[%clk 0:00:51.3]} 57...
Rc2 {[%clk 0:00:02.1]} 58. c4 {[%clk 0:00:50.9]} 58... h4 {[%clk 0:00:01.8]} 59.
Rxh4 {[%clk 0:00:49.7]} 59... Rg2 {[%clk 0:00:02.4]} 60. Rh7+ {[%clk 0:00:49.7]}
60... Kd6 {[%clk 0:00:02.2]} 61. Rh6+ {[%clk 0:00:49.8]} 61... Kd7 {[%clk
0:00:02.4]} 62. c5 {[%clk 0:00:49.8]} 62... bxc5 {[%clk 0:00:02.4]} 63. bxc5
{[%clk 0:00:50]} 63... Rb2+ {[%clk 0:00:02.8]} 64. Kc4 {[%clk 0:00:50.1]} 64...
Rc2+ {[%clk 0:00:03.4]} 65. Kd4 {[%clk 0:00:50.3]} 65... Rd2+ {[%clk 0:00:03.8]}
66. Ke4 {[%clk 0:00:50.7]} 66... Re2+ {[%clk 0:00:04.3]} 67. Kd3 {[%clk
0:00:50.9]} 67... Ra2 {[%clk 0:00:04.8]} 68. Rh7+ {[%clk 0:00:50.2]} 68... Kd8
{[%clk 0:00:04.9]} 69. Rh6 {[%clk 0:00:49.7]} 69... Ra1 {[%clk 0:00:03.5]} 70.
Kc4 {[%clk 0:00:49.7]} 70... Rc1+ {[%clk 0:00:03.8]} 71. Kb5 {[%clk 0:00:49.8]}
71... Kd7 {[%clk 0:00:04.1]} 72. Rh7+ {[%clk 0:00:49.6]} 72... Kd8 {[%clk
0:00:03.2]} 73. Kc6 {[%clk 0:00:49.7]} 73... Rc2 {[%clk 0:00:03.4]} 74. Rd7+
{[%clk 0:00:48.3]} 74... Kc8 {[%clk 0:00:02.5]} 75. Rxc7+ {[%clk 0:00:48.5]}
75... Kb8 {[%clk 0:00:03]} 76. Rh7 {[%clk 0:00:45.5]} 1-0